lending/lending_fUSD_20260411
["ID","MTS","AMOUNT","RATE_DAILY","PERIOD"]
[420236898,1775838645986,-356.0,0.00015961,2]
[420236899,1775838645999,-500.0,0.00015973,2]
[420236900,1775838646013,-500.0,0.00015973,2]
[420236901,1775838646035,-500.0,0.00015973,2]
[420236902,1775838646047,-500.0,0.00015973,2]
[420236903,1775838646066,-454.6000021,0.00015973,2]
[420236905,1775838646078,-500.64769694,0.00015973,2]
[420236906,1775838646087,-500.0,0.00015973,2]
[420236908,1775838646115,-500.52139576,0.00015973,2]
[420236910,1775838646125,-25001.98,0.00015974,3]
[420236912,1775838646149,-171.75913274,0.00015984,2]
[420236914,1775838646171,-598.47888008,0.0001599,2]
[420236915,1775838646181,-155.35955319,0.00015992,2]
[420236917,1775838646205,-901.94,0.00015993,2]
[420236918,1775838646221,-151.0,0.00015996,2]
[420236919,1775838646231,-1094.27129325,0.00015999,5]
[420236920,1775838646245,-1094.27129324,0.00015999,5]
[420236921,1775838646265,-967.9,0.00015999,2]
[420236922,1775838646276,-967.9,0.00015999,2]
[420236923,1775838646290,-967.9,0.00015999,2]
[420236924,1775838646311,-967.9,0.00015999,2]
[420236925,1775838646322,-967.9,0.00015999,2]
[420236926,1775838646347,-967.97478885,0.00015999,2]
[420236927,1775838646359,-523896.53444986,0.00016,2]
[420236928,1775838646372,-160623.54560525,0.00016,2]
[420236929,1775838646392,-1193451.00855097,0.00016,2]
[420236931,1775838646409,-200.0,0.00016,2]
[420236933,1775838646437,-2000.0,0.00016,2]
[420236934,1775838646463,-2002.6705591,0.00016,2]
[420236935,1775838646493,-16030.14185633,0.00016,2]
[420236936,1775838646596,-720.01455073,0.00016,2]
[420236938,1775838646966,-451.16443666,0.00016,2]
[420236939,1775838646981,-550.00562666,0.00016,2]
[420236940,1775838646993,-4243.84506568,0.00016,2]
[420236942,1775838647008,-523.49875391,0.00016,2]
[420236943,1775838647055,-3300.0,0.00016,2]
[420236944,1775838647096,-3634.3,0.00016,2]
[420236945,1775838647416,-718.0,0.00012402,2]
[420236946,1775838647435,-151.0,0.0001283,2]
[420236947,1775838647449,-250.0,0.00013,2]
[420236948,1775838647462,-428.0,0.00014539,2]
[420236949,1775838647495,-1347.0,0.00014916,2]
[420236950,1775838647523,-300.0,0.00015,2]
[420236951,1775838647554,-1299.0,0.00015805,2]
[420236952,1775838647591,-15800.01097519,0.00016,2]
[420236953,1775838647609,-827.75733248,0.00016,2]
[420236954,1775838647629,-36338.52254249,0.00016,2]
[420236955,1775838647672,-496.36204643,0.00013867,2]
[420236956,1775838647703,-509.88245435,0.00013867,2]
[420236957,1775838647862,-993.75549922,0.00013867,2]
[420236958,1775838647873,-311.0,0.00014568,2]
[420236959,1775838647882,-1336.72080019,0.00015601,2]
[420236960,1775838648634,-663.27919981,0.00015601,2]
[420236961,1775838648668,-155745.42062159,0.00016,2]
[420236962,1775838648749,-400.88914376,0.00016,2]
[420236963,1775838648794,-1356.0,0.000159,2]
[420236964,1775838648820,-41393.672503,0.00016,2]
[420236965,1775838648836,-4452.09999987,0.00016,2]
[420236966,1775838648864,-462.708,0.00016,2]
[420236967,1775838648878,-4136.38765673,0.00016,2]
[420236968,1775838648901,-1434.61950838,0.00016,2]
[420236969,1775838648924,-602402.52812157,0.00016,2]
[420236970,1775838648945,-58717.18108634,0.00016,2]
[420236971,1775838648965,-608.21731146,0.00016,2]
[420236972,1775838648986,-1180.95304529,0.00016,2]
[420236973,1775838649088,-345.53625,0.00016,2]
[420236974,1775838649108,-16031.52752629,0.00016,2]
[420236975,1775838789146,-166.854,0.00012105,2]
[420236976,1775838789216,-3303.129,0.00012105,2]
[420236977,1775838789255,-184.74771004,0.00012264,2]
[420236978,1775838789297,-300.0,0.00012351,2]
[420236979,1775838789331,-150.0,0.00012351,2]
[420236980,1775838789362,-300.0,0.00012351,2]
[420236981,1775838789398,-305.86386444,0.00012351,2]
[420236982,1775838789431,-500.0,0.00012351,2]
[420236983,1775838789465,-500.0,0.00012351,2]
[420236984,1775838789498,-20404.40542552,0.00012352,2]
[420236985,1775838809014,200.0,0.000116,4]
[420236986,1775838811619,500.0,0.000117,4]
[420236987,1775838813206,800.0,0.000118,4]
[420236988,1775838815313,1100.0,0.000119,4]
[420236989,1775838851443,158.0,0.00011955,2]
[420236991,1775838892916,5000.01,0.00011955,2]
[420236992,1775838895603,-0.02,0.00011955,2]
[420236993,1775838898362,-0.04,0.00011955,2]
[420236994,1775838898417,-1891.65,0.00011955,2]
[420236995,1775838901529,-1891.73,0.00011955,2]
[420236996,1775838901563,-1216.55,0.00011955,2]
[420236997,1775838906843,162.0,0.00011955,2]
[420236998,1775838908107,158.0,0.00011955,2]
[420236999,1775838967059,158.0,0.00011984,2]
[420237000,1775839027862,158.0,0.00011984,2]
[420237001,1775839087725,159.0,0.00012064,2]
[420237002,1775839121677,500.0,0.00011833,2]
[420237003,1775839166350,350.65047136,0.00012064,2]
[420237004,1775839206329,159.0,0.00012064,2]
[420237005,1775839265306,10000.01,0.0001173,2]
[420237006,1775839265329,10000.01,0.0001173,2]
[420237007,1775839265353,10000.01,0.0001173,2]
[420237008,1775839265380,10000.01,0.0001173,2]
[420237009,1775839265403,10000.01,0.0001173,2]
[420237010,1775839265433,10000.01,0.0001173,2]
[420237011,1775839265468,10000.01,0.0001173,2]
[420237012,1775839265507,10000.01,0.0001173,2]
[420237013,1775839265535,10000.01,0.0001173,2]
[420237014,1775839265579,10000.01,0.0001173,2]
[420237015,1775839281858,-3668.24888256,0.0001173,2]
[420237016,1775839281972,-10000.01,0.0001173,2]
[420237017,1775839283196,-10000.01,0.0001173,2]
[420237018,1775839283221,-10000.01,0.0001173,2]
[420237019,1775839283268,-10000.01,0.0001173,2]
[420237020,1775839283287,-10000.01,0.0001173,2]
[420237021,1775839283303,-10000.01,0.0001173,2]
[420237022,1775839283333,-10000.01,0.0001173,2]
[420237023,1775839284683,-10000.01,0.0001173,2]
[420237024,1775839284812,-10000.01,0.0001173,2]
[420237025,1775839294087,-10000.01,0.0001173,2]
[420237026,1775839294103,-10000.01,0.0001173,2]
[420237027,1775839297149,-10000.0,0.0001173,2]
[420237028,1775839299759,-323.0,0.0001173,2]
[420237029,1775839299800,-69.19888256,0.0001173,2]
[420237030,1775839299857,-9215.61223488,0.0001173,2]
[420237031,1775839327153,291.0,0.000119,2]
[420237032,1775839329173,6790.61656041,0.0001173,2]
[420237033,1775839329218,1027.8947003,0.0001173,2]
[420237034,1775839329260,1890.49873929,0.0001173,2]
[420237035,1775839329286,791.2723759,0.0001173,2]
[420237036,1775839329860,7425.2307555,0.0001173,2]
[420237037,1775839338667,1000.0,0.00011,2]
[420237038,1775839374832,5000.01,0.00011563,2]
[420237039,1775839374860,462.27,0.00011563,2]
[420237040,1775839387139,309.0,0.00011564,2]
[420237041,1775839512399,293.0,0.00011564,2]
[420237042,1775839512439,162.0,0.00011564,2]
[420237043,1775839572246,278.0,0.00011564,2]
[420237044,1775839587684,-246.12,0.00011612,7]
[420237045,1775839589603,5936.2,0.00011564,2]
[420237046,1775839625394,265.0,0.00011612,2]
[420237047,1775839718870,321.0,0.00011612,2]
[420237048,1775839725866,1600.0,0.00011366,2]
[420237049,1775839727716,-251.0,0.00011612,2]
[420237050,1775839747553,239.0,0.00011612,2]
[420237051,1775839805356,227.0,0.00011612,2]
[420237052,1775839831450,-233.7669809,0.00011964,2]
[420237053,1775839831471,-233.76698089,0.00012008,2]
[420237054,1775839831494,-233.76698089,0.00012052,2]
[420237055,1775839831507,-300.0,0.00012063,2]
[420237056,1775839831543,-329.0,0.00012063,2]
[420237057,1775839831582,-1200.0,0.00012063,2]
[420237058,1775839831631,-2187.5745,0.00012064,2]
[420237059,1775839831649,-227.0,0.00012113,3]
[420237060,1775839831665,-25394.18088684,0.00012151,2]
[420237061,1775839831689,-2922.36076613,0.00012151,2]
[420237062,1775839831718,-1605.99198305,0.00012151,2]
[420237063,1775839831743,-72454.10356811,0.00012151,2]
[420237064,1775839831755,-571.68055395,0.00012151,2]
[420237065,1775839831832,-1933.86916611,0.00012151,2]
[420237066,1775839831847,-1271.14161176,0.00012151,2]
[420237067,1775839831861,-1005.49001511,0.00012151,2]
[420237068,1775839831903,-980.09373933,0.00012151,2]
[420237069,1775839831920,-1009.784997,0.00012151,2]
[420237070,1775839837683,-169.91305106,0.0001215,2]
[420237071,1775839837695,-500.0,0.0001215,2]
[420237072,1775839837720,-500.0,0.0001215,2]
[420237073,1775839837731,-535.54854128,0.0001215,2]
[420237074,1775839837765,-483.36103957,0.0001215,2]
[420237075,1775839837775,-500.0,0.0001215,2]
[420237076,1775839837810,-500.0,0.0001215,2]
[420237077,1775839837820,-500.0,0.0001215,2]
[420237078,1775839837835,-8290.9300276,0.00012151,2]
[420237079,1775839837868,-4134.16891772,0.00012151,2]
[420237080,1775839837883,-1448.74928738,0.00012151,2]
[420237081,1775839837935,-451.15504761,0.00012151,2]
[420237082,1775839838054,-1313.60996539,0.00012151,2]
[420237083,1775839838068,-1364.2629872,0.00012151,2]
[420237123,1775839840424,-330.0,0.00012151,2]
[420237124,1775839840448,-2471.30178774,0.00012151,2]
[420237125,1775839840677,-403443.33509197,0.00012151,2]
[420237126,1775839840713,-343.62965424,0.00012152,2]
[420237127,1775839840722,-46855.7933,0.00012152,2]
[420237128,1775839840733,-2500.0,0.00012152,2]
[420237129,1775839840754,-500.0,0.00012164,2]
[420237130,1775839840764,-182.0113562,0.0001218,2]
[420237131,1775839840776,-527.1288701,0.0001218,2]
[420237132,1775839840802,-648.05542606,0.000122,2]
[420237133,1775839840813,-500.0,0.00012251,2]
[420237134,1775839840830,-500.0,0.00012251,2]
[420237135,1775839840843,-22055.93,0.00012252,2]
[420237136,1775839840870,-116685.03,0.00012252,2]
[420237137,1775839840880,-5948.2,0.00012252,2]
[420237138,1775839840903,-499.99,0.00012252,2]
[420237139,1775839840934,-518.4,0.00012252,2]
[420237140,1775839840945,-9999.99,0.00012252,2]
[420237141,1775839840962,-9999.99,0.00012252,2]
[420237142,1775839840988,-9999.99,0.00012252,2]
[420237143,1775839841000,-153.56440271,0.00012264,2]
[420237144,1775839841026,-180447.29,0.00012264,2]
[420237145,1775839841036,-500.94532392,0.00012273,2]
[420237146,1775839841045,-686.3494911,0.0001228,2]
[420237147,1775839841056,-299.99,0.0001228,2]
[420237148,1775839841066,-216.25,0.00012307,2]
[420237149,1775839841075,-151.0,0.00012321,2]
[420237150,1775839841085,-151.0,0.00012345,2]
[420237151,1775839841096,-151.0,0.00012345,2]
[420237152,1775839841108,-151.0,0.00012345,2]
[420237153,1775839841128,-151.0,0.00012345,2]
[420237154,1775839841141,-151.0,0.00012345,2]
[420237155,1775839841158,-151.0,0.00012345,2]
[420237156,1775839841167,-151.0,0.00012345,2]
[420237157,1775839841177,-151.0,0.00012345,2]
[420237158,1775839841192,-151.0,0.00012345,2]
[420237159,1775839841208,-151.0,0.00012345,2]
[420237160,1775839841231,-151.0,0.00012345,2]
[420237161,1775839841246,-151.0,0.00012345,2]
[420237162,1775839841260,-151.0,0.00012345,2]
[420237163,1775839841280,-151.0,0.00012345,2]
[420237164,1775839841292,-151.0,0.00012345,2]
[420237165,1775839841329,-151.0,0.00012345,2]
[420237166,1775839841372,-500.0,0.00012345,2]
[420237167,1775839841393,-500.0,0.00012345,2]
[420237168,1775839841419,-500.0,0.00012345,2]
[420237169,1775839841431,-500.0,0.00012345,2]
[420237170,1775839841441,-500.0,0.00012345,2]
[420237171,1775839841456,-500.0,0.00012345,2]
[420237172,1775839841470,-500.0,0.00012345,2]
[420237173,1775839841480,-500.0,0.00012345,2]
[420237174,1775839841489,-500.0,0.00012345,2]
[420237175,1775839841508,-500.0,0.00012345,2]
[420237176,1775839841520,-500.0,0.00012345,2]
[420237177,1775839841530,-500.0,0.00012345,2]
[420237178,1775839841544,-500.0,0.00012345,2]
[420237179,1775839841562,-500.0,0.00012345,2]
[420237180,1775839841572,-500.0,0.00012345,2]
[420237181,1775839841582,-500.0,0.00012345,2]
[420237182,1775839841596,-1211.28,0.00012351,2]
[420237183,1775839841609,-610.0,0.00012357,2]
[420237184,1775839841620,-195.0,0.00012357,2]
[420237185,1775839841631,-1722.17989117,0.00012381,2]
[420237186,1775839841640,-458.91580962,0.00012381,2]
[420237187,1775839841653,-216.00508003,0.00012405,2]
[420237188,1775839841669,-307.51110822,0.00012525,2]
[420237189,1775839841683,-428.0,0.00012563,2]
[420237190,1775839841694,-343.62965417,0.00012568,2]
[420237191,1775839841711,-1280.0,0.00012583,2]
[420237192,1775839841721,-166.66,0.00012602,2]
[420237193,1775839841730,-216.0,0.00012613,2]
[420237194,1775839841740,-302.0,0.00012631,2]
[420237195,1775839841754,-336.0,0.00012657,2]
[420237196,1775839841773,-227.0,0.00012663,3]
[420237197,1775839841782,-150.0,0.000127,2]
[420237198,1775839841792,-527.12887005,0.00012711,2]
[420237199,1775839841813,-1600.0,0.00012787,2]
[420237200,1775839841824,-358888.0246,0.00012795,2]
[420237201,1775839841834,-33047.9748,0.00012795,2]
[420237202,1775839841853,-150.0,0.000128,2]
[420237203,1775839841864,-500.0,0.00012983,2]
[420237204,1775839841874,-343.62965417,0.00012985,2]
[420237205,1775839841903,-166.66,0.00013018,2]
[420237206,1775839841916,-504.0,0.000131,2]
[420237207,1775839841937,-227.0,0.00013212,3]
[420237208,1775839841964,-420.0,0.00013242,2]
[420237209,1775839841974,-527.12887005,0.00013243,2]
[420237210,1775839841991,-73590.58424554,0.00013254,2]
[420237211,1775839842008,-2268.4841682,0.00013356,2]
[420237212,1775839842018,-343.62965417,0.00013401,2]
[420237213,1775839842047,-166.66,0.00013434,2]
[420237214,1775839842062,-500.0,0.00013698,2]
[420237215,1775839842074,-166.66,0.00013699,2]
[420237216,1775839842086,-177.39,0.00013699,2]
[420237217,1775839842097,-500.0,0.00013699,2]
[420237218,1775839842113,-500.0,0.00013699,2]
[420237219,1775839842123,-500.0,0.00013699,2]
[420237220,1775839842136,-236.13754649,0.00013699,2]
[420237221,1775839842146,-370.42991827,0.00013699,2]
[420237222,1775839842160,-560.33725224,0.00013699,2]
[420237223,1775839842187,-500.0,0.00013699,2]
[420237224,1775839842197,-500.0,0.00013699,2]
[420237225,1775839842232,-500.0,0.00013699,2]
[420237226,1775839842241,-500.0,0.00013699,2]
[420237227,1775839842270,-500.0,0.00013699,2]
[420237228,1775839842280,-500.0,0.00013699,2]
[420237229,1775839842289,-500.0,0.00013699,2]
[420237230,1775839842313,-500.88471616,0.00013699,2]
[420237231,1775839842323,-555.4,0.000137,2]
[420237232,1775839842333,-227.0,0.00013761,3]
[420237233,1775839842361,-527.12887005,0.00013774,2]
[420237234,1775839842370,-343.62965417,0.00013818,2]
[420237235,1775839842381,-166.66,0.00013836,2]
[420237236,1775839842406,-166.66,0.0001385,2]
[420237237,1775839842416,-166.66,0.00013973,2]
[420237238,1775839842426,-174.3372,0.00014,2]
[420237242,1775839842456,-1110.8,0.00014017,2]
[420237244,1775839842467,-182.01135619,0.0001404,2]
[420237245,1775839842483,-1600.0,0.00014082,2]
[420237246,1775839842502,-900.0,0.00014082,2]
[420237247,1775839842515,-686.3494911,0.0001409,2]
[420237248,1775839842533,-166.66,0.0001411,2]
[420237249,1775839842547,-160.0,0.00014149,2]
[420237250,1775839842574,-1600.0,0.00014207,2]
[420237251,1775839842593,-343.62965417,0.00014234,2]
[420237252,1775839842611,-166.66,0.00014247,2]
[420237253,1775839842648,-349.56796848,0.00014247,2]
[420237254,1775839842657,-500.0,0.00014247,2]
[420237255,1775839842684,-1000.0,0.00014247,2]
[420237256,1775839842695,-199.66905233,0.00014247,2]
[420237257,1775839842705,-1000.0,0.00014247,2]
[420237258,1775839842731,-166.66,0.00014266,2]
[420237259,1775839842741,-527.12887005,0.00014306,2]
[420237260,1775839842754,-227.0,0.0001431,3]
[420237261,1775839842774,-1666.2,0.00014334,2]
[420237262,1775839842784,-166.66,0.00014384,2]
[420237263,1775839842796,-177.39,0.00014384,2]
[420237264,1775839842824,-587.0,0.00014536,2]
[420237265,1775839842838,-343.62965417,0.00014651,2]
[420237266,1775839842851,-2221.6,0.00014651,2]
[420237267,1775839842878,-166.66,0.00014682,2]
[420237268,1775839842889,-160.0,0.0001469,7]
[420237269,1775839842899,-510.455885,0.0001469,7]
[420237270,1775839842916,-160.0,0.0001469,7]
[420237271,1775839842934,-860.911771,0.0001469,7]
[420237272,1775839842944,-421.594245,0.0001469,7]
[420237273,1775839842953,-683.18849,0.0001469,7]
[420237274,1775839842962,-171.4442,0.0001469,2]
[420237275,1775839842981,-928.0,0.000147,2]
[420237276,1775839843001,-313.0,0.000147,2]
[420237277,1775839843010,-1500.0,0.00014795,2]
[420237278,1775839843021,-1500.0,0.00014795,2]
[420237279,1775839843032,-1549.0,0.00014804,2]
[420237280,1775839843042,-150.0,0.00014804,2]
[420237282,1775839843051,-150.0,0.00014804,2]
[420237284,1775839843061,-200.0,0.00014804,2]
[420237286,1775839843070,-527.12887005,0.00014837,2]
[420237288,1775839843085,-227.0,0.0001486,3]
[420237290,1775839843096,-150.0,0.00014916,2]
[420237292,1775839843116,-150.0,0.00014916,2]
[420237294,1775839843127,-150.0,0.00014916,2]
[420237295,1775839843137,-504.0,0.00014958,3]
[420237296,1775839843163,-2777.0,0.00014969,2]
[420237297,1775839843187,-622.0,0.0001499,2]
[420237298,1775839843208,-1047.0,0.0001499,2]
[420237299,1775839843275,-1347.0,0.0001499,2]
[420237301,1775839843293,-1264.0,0.0001499,2]
[420237302,1775839843307,-415.0,0.0001499,2]
[420237303,1775839843330,-6023.0,0.0001499,2]
[420237304,1775839843342,-160.0,0.0001504,2]
[420237306,1775839843369,-177.913792,0.0001504,2]
[420237307,1775839843381,-195.827584,0.0001504,2]
[420237308,1775839843399,-160.0,0.0001504,7]
[420237309,1775839843426,-524.449658,0.0001504,7]
[420237310,1775839843460,-888.899317,0.0001504,7]
[420237311,1775839843479,-343.62965417,0.00015067,2]
[420237312,1775839843500,-177.39,0.00015068,2]
[420237313,1775839843513,-1000.0,0.00015153,2]
[420237314,1775839843523,-1000.0,0.00015211,2]
[420237315,1775839843547,-168.0,0.00015235,2]
[420237316,1775839843557,-1000.0,0.00015237,2]
[420237317,1775839843567,-3332.4,0.00015286,2]
[420237318,1775839843586,-202.623,0.000153,2]
[420237319,1775839843597,-2000.0,0.00015342,2]
[420237320,1775839843609,-2000.0,0.00015342,2]
[420237321,1775839843621,-3380.0976458,0.00015347,2]
[420237322,1775839843642,-83683.6947123,0.00015347,2]
[420237323,1775839843651,-172.93384902,0.00015347,2]
[420237324,1775839843679,-1336.191252,0.00015347,2]
[420237325,1775839843700,-527.12887005,0.00015369,2]
[420237326,1775839843713,-227.0,0.00015409,3]
[420237327,1775839843739,-696.076207,0.00015425,7]
[420237328,1775839843749,-574.901243,0.00015425,7]
[420237329,1775839843759,-168.0,0.00015447,2]
[420237330,1775839843774,-1600.0,0.00015452,2]
[420237331,1775839843792,-900.0,0.00015452,2]
[420237332,1775839843802,-778.27,0.00015471,2]
[420237333,1775839843811,-343.62965417,0.00015484,2]
[420237334,1775839843823,-260.33111204,0.000155,2]
[420237335,1775839843842,-3887.8,0.00015603,2]
[420237336,1775839843856,-168.0,0.00015609,2]
[420237337,1775839843883,-1600.0,0.00015628,2]
[420237338,1775839843899,-150.07717281,0.0001568,2]
[420237339,1775839843920,-177.39,0.00015753,2]
[420237340,1775839843941,-356.0,0.00015759,2]
[420237341,1775839843968,-168.0,0.00015766,2]
[420237342,1775839843978,-242.609716,0.00015792,2]
[420237343,1775839843997,-715.158625,0.00015792,7]
[420237344,1775839844023,-340.58489967,0.000158,2]
[420237345,1775839844041,-2500.0,0.0001589,2]
[420237346,1775839844054,-2500.0,0.0001589,2]
[420237347,1775839844066,-1739.7594432,0.00015893,2]
[420237348,1775839844076,-686.3494911,0.000159,2]
[420237349,1775839844086,-343.62965417,0.000159,2]
[420237350,1775839844098,-182.01135619,0.000159,2]
[420237351,1775839844120,-18300.77607995,0.000159,2]
[420237352,1775839844131,-527.12887005,0.000159,2]
[420237353,1775839844141,-304.324445,0.000159,2]
[420237354,1775839844151,-4443.2,0.0001592,2]
[420237355,1775839844170,-271.07492803,0.00015924,2]
[420237356,1775839844186,-823.0,0.00015956,2]
[420237357,1775839844195,-227.0,0.00015958,3]
[420237358,1775839844217,-61931.34287217,0.00016,2]
[420237359,1775839844234,-4368.552554,0.00016,2]
[420237360,1775839844486,-389.49353733,0.0001215,2]
[420237361,1775839844515,-110.50646267,0.0001215,2]
[420237362,1775839844525,-500.0,0.0001215,2]
[420237363,1775839844538,-500.0,0.0001215,2]
[420237364,1775839844555,-644.96283734,0.0001215,2]
[420237365,1775839844565,-422.2787811,0.0001215,2]
[420237366,1775839844578,-500.0,0.0001215,2]
[420237367,1775839844596,-500.0,0.0001215,2]
[420237368,1775839844612,-500.0,0.0001215,2]
[420237369,1775839844623,-500.0,0.0001215,2]
[420237370,1775839844638,-500.0,0.0001215,2]
[420237371,1775839844651,-500.0,0.0001215,2]
[420237372,1775839844669,-500.0,0.0001215,2]
[420237373,1775839844683,-500.0,0.0001215,2]
[420237374,1775839844693,-500.0,0.0001215,2]
[420237375,1775839844726,-500.0,0.0001215,2]
[420237376,1775839844738,-500.0,0.0001215,2]
[420237377,1775839844784,-2471.0,0.0001499,2]
[420237378,1775839844796,-673.99566723,0.00016,2]
[420237379,1775839845602,-500.0,0.0001215,2]
[420237380,1775839845612,-500.0,0.0001215,2]
[420237381,1775839845625,-500.0,0.0001215,2]
[420237382,1775839845649,-500.0,0.0001215,2]
[420237383,1775839845659,-500.0,0.0001215,2]
[420237384,1775839845680,-500.0,0.0001215,2]
[420237385,1775839845690,-500.0,0.0001215,2]
[420237386,1775839845709,-500.0,0.0001215,2]
[420237387,1775839845721,-500.0,0.0001215,2]
[420237388,1775839845731,-313.38169941,0.0001215,2]
[420237389,1775839845749,-186.61830059,0.0001215,2]
[420237390,1775839845773,-500.0,0.0001215,2]
[420237391,1775839845783,-500.0,0.0001215,2]
[420237392,1775839845792,-500.0,0.0001215,2]
[420237393,1775839845811,-500.0,0.0001215,2]
[420237394,1775839845823,-500.0,0.0001215,2]
[420237395,1775839845832,-500.0,0.0001215,2]
[420237396,1775839845842,-500.0,0.0001215,2]
[420237397,1775839845874,-500.0,0.0001215,2]
[420237398,1775839845887,-200.88404495,0.0001215,2]
[420237399,1775839845914,-500.0,0.0001215,2]
[420237400,1775839845924,-500.0,0.0001215,2]
[420237401,1775839845959,-120.49766158,0.0001215,2]
[420237404,1775839846967,-379.50233842,0.0001215,2]
[420237405,1775839846976,-2143.07408003,0.00016,2]
[420237407,1775840288054,558.338994,7.945e-05,2]
[420237408,1775840293130,-2513.234261,0.00011903,2]
[420237409,1775840293200,-327.0,0.00011963,2]
[420237410,1775840293247,-250.0,0.00011963,2]
[420237411,1775840299002,-5000.0,0.00011963,2]
[420237412,1775840302019,-500.0,0.00011963,2]
[420237413,1775840302112,-250.0,0.00011991,2]
[420237414,1775840302156,-3500.01,0.00012016,2]
[420237415,1775840318861,6669.51008434,8e-05,2]
[420237416,1775840418345,261.73927932,0.000101,2]
[420237418,1775840500297,489.32356976,0.0001,2]
[420237419,1775840527108,5000.01,0.000107,2]
[420237420,1775840527177,9510.68643024,0.000107,2]
[420237421,1775840527218,10000.01,0.000107,2]
[420237422,1775840527249,10000.01,0.000107,2]
[420237423,1775840527292,10000.01,0.000107,2]
[420237424,1775840527338,2000000.0,0.000107,2]
[420237425,1775840533021,-1315.90614834,0.0001,2]
[420237426,1775840533170,-10000.01,0.0001,2]
[420237427,1775840533359,-3498.36281263,0.0001,2]
[420237428,1775840533410,-3003.28437474,0.0001,2]
[420237429,1775840535887,-348.73905926,0.0001,2]
[420237430,1775840535922,-170.63288767,0.00010673,2]
[420237431,1775840535955,-500.0,0.00010673,2]
[420237432,1775840535983,-500.0,0.00010673,2]
[420237433,1775840536297,-500.0,0.00010673,2]
[420237434,1775840536632,-6461.26610614,0.000107,2]
[420237435,1775840536646,-10000.01,0.000107,2]
[420237436,1775840536684,-500.0,0.000107,2]
[420237437,1775840536703,-9000.01,0.000107,2]
[420237438,1775840536725,-10000.01,0.000107,2]
[420237439,1775840536771,-10000.01,0.000107,2]
[420237440,1775840536787,-10000.01,0.000107,2]
[420237441,1775840536961,-1190.93172668,0.000107,2]
[420237442,1775840537062,-10000.01,0.000107,2]
[420237443,1775840537105,-10000.01,0.000107,2]
[420237444,1775840538393,-10000.01,0.000107,2]
[420237445,1775840538576,-10000.01,0.000107,2]
[420237447,1775840539016,-5000.01,0.000107,2]
[420237448,1775840541744,-10000.01,0.000107,2]
[420237449,1775840541904,-10000.01,0.000107,2]
[420237450,1775840541978,-5000.01,0.000107,2]
[420237451,1775840542035,-10000.01,0.000107,2]
[420237452,1775840542143,-10000.01,0.000107,2]
[420237453,1775840542267,-10000.01,0.000107,2]
[420237454,1775840544392,-10000.01,0.000107,2]
[420237455,1775840545620,-5000.01,0.000107,2]
[420237456,1775840547423,-10000.01,0.000107,2]
[420237457,1775840547536,-10000.01,0.000107,2]
[420237458,1775840547629,-10000.01,0.000107,2]
[420237459,1775840547745,-10000.01,0.000107,2]
[420237460,1775840547898,-10000.01,0.000107,2]
[420237461,1775840548005,-10000.01,0.000107,2]
[420237462,1775840548207,-5000.01,0.000107,2]
[420237463,1775840551416,-5000.01,0.00010646,2]
[420237464,1775840554983,-867.480459,0.00010646,2]
[420237465,1775840555126,-1734.960918,0.00010646,2]